bitfinex/quotes_ETHUSD_20250720
["timestamp","ask_amount","ask_price","bid_price","bid_amount"]
[1753001477107,2.6972554,3707.5,3706.6,2.69789024]
[1753001477436,2.6972554,3707.5,3706.2,1.2171]
[1753001477437,30.0,3707.4,3706.8,2.69773575]
[1753001477742,0.4483,3707.7,3706.8,2.69772829]
[1753001477904,30.0,3707.6,3706.7,2.69781746]
[1753001478099,30.0,3707.6,3706.8,2.69774468]
[1753001478332,30.0,3707.6,3706.9,2.6976719]
[1753001478541,30.0,3707.6,3706.4,0.55]
[1753001478741,0.4483,3707.7,3706.6,4.636]
[1753001478945,4.637,3707.9,3707.3,2.69734821]
[1753001479244,0.8214,3708.0,3706.7,0.4625]
[1753001479541,0.8214,3708.0,3707.3,2.69733528]
[1753001480218,0.8214,3708.0,3706.8,0.50985]
[1753001480440,32.69700877,3707.9,3706.8,3.20759373]
[1753001480770,32.69703944,3707.8,3707.2,0.1344]
[1753001480921,2.69725833,3707.5,3707.2,0.1344]
[1753001481119,0.5827,3707.7,3707.0,0.1344]
[1753001481320,33.14551701,3707.6,3707.0,0.1344]
[1753001481540,2.69726646,3707.5,3706.7,2.69779968]
[1753001481709,2.6973287,3707.4,3706.7,2.69779968]
[1753001481909,3.14551548,3707.6,3706.8,2.69772801]
[1753001482132,2.69725454,3707.5,3706.8,2.69772801]
[1753001482442,2.69725454,3707.5,3706.7,2.69780335]
[1753001482640,0.4483,3707.6,3706.3,4.636]
[1753001482820,2.69725115,3707.5,3706.7,2.69776831]
[1753001483020,3.4483,3707.6,3706.4,0.85513086]
[1753001483220,0.4483,3707.6,3706.4,0.85513086]
[1753001483516,5.69700329,3707.9,3707.1,2.69746664]
[1753001483724,5.69700329,3707.9,3707.2,2.69742854]
[1753001483725,3.0,3707.7,3707.2,2.69742854]
[1753001483904,0.4483,3707.8,3706.6,2.69789024]
[1753001484109,3.0,3707.6,3706.8,2.69768443]
[1753001484412,2.69721728,3707.6,3706.8,2.69768443]
[1753001484714,0.8214,3708.0,3706.9,0.4625]
[1753001484908,0.8214,3708.0,3707.0,0.7842]
[1753001485112,0.8214,3708.0,3707.4,2.6972429]
[1753001485306,0.8214,3708.0,3707.0,0.7842]
[1753001485643,0.8214,3708.0,3707.6,2.69714635]
[1753001485840,0.8214,3708.0,3707.5,2.69721814]
[1753001486036,0.8214,3708.0,3707.1,0.39443558]
[1753001486244,0.8214,3708.0,3707.5,2.69716738]
[1753001486415,0.4483,3707.9,3707.4,2.69729948]
[1753001486620,0.4483,3707.9,3707.4,2.69725566]
[1753001486820,0.44425948,3707.9,3707.0,0.7842]
[1753001487081,0.8214,3708.0,3707.6,2.69711263]
[1753001487230,5.4554,3708.0,3707.6,2.69711263]
[1753001487447,5.4554,3708.0,3707.4,2.69730355]
[1753001487625,5.4554,3708.0,3707.6,2.69710965]
[1753001488242,0.8214,3708.0,3707.7,2.69706882]
[1753001488543,5.4554,3708.0,3707.6,2.69711928]
[1753001489044,0.8214,3708.0,3707.9,2.69694436]
[1753001489348,0.002,3708.0,3707.9,3.3956388]
[1753001489517,0.002,3708.0,3707.9,0.26969444]
[1753001489712,0.002,3708.0,3707.9,2.69694436]
[1753001490119,0.833,3707.9,3705.7,4.66]
[1753001490321,0.833,3707.9,3705.2,7.89]
[1753001490322,2.69746398,3707.2,3705.8,0.45598472]
[1753001490650,1.2814,3707.8,3706.0,2.69832703]
[1753001490651,2.69760243,3707.0,3706.0,2.69832703]
[1753001490940,2.69760243,3707.0,3706.1,2.69824443]
[1753001491147,2.69760243,3707.0,3705.8,3.15445284]
[1753001491309,2.69772245,3706.9,3705.8,3.46989812]
[1753001491509,2.69780472,3706.8,3706.4,0.1344]
[1753001491734,2.83204061,3707.0,3706.4,0.1344]
[1753001491735,32.69785181,3706.7,3706.4,0.1344]
[1753001491935,30.0,3706.6,3706.4,0.1344]
[1753001492137,32.69789217,3706.6,3706.4,0.1344]
[1753001492458,3.14636303,3706.5,3706.4,0.1344]
[1753001492618,38.465,3706.5,3705.1,0.001]
[1753001492813,0.1344,3706.0,3705.4,0.1344]
[1753001493131,0.833,3705.7,3705.4,0.1344]
[1753001493308,2.69863393,3705.6,3705.4,0.1344]
[1753001493514,2.69869113,3705.5,3705.1,0.001]
[1753001493725,3.14709113,3705.5,3705.2,0.1344]
[1753001493920,0.4484,3705.4,3705.2,0.1344]
[1753001494134,30.0,3705.3,3705.2,0.1344]
[1753001494311,30.0,3705.3,3705.1,0.001]
[1753001494312,33.1472368,3705.3,3705.1,0.001]
[1753001494528,33.14730964,3705.2,3705.1,0.001]
[1753001495034,36.14730964,3705.2,3705.1,0.001]
[1753001495348,36.96380964,3705.2,3705.1,0.001]
[1753001495813,36.51540964,3705.2,3705.1,0.001]
[1753001496015,0.1344,3706.2,3705.4,2.69872614]
[1753001496455,0.1344,3706.2,3705.6,0.1344]
[1753001496627,30.8165,3706.1,3705.6,0.1344]
[1753001496960,30.8165,3706.1,3705.1,0.1354]
[1753001496961,0.1344,3705.7,3705.1,0.1354]
[1753001497254,30.0,3706.0,3705.9,2.69839984]
[1753001497459,30.0,3706.0,3705.9,3.39723982]
[1753001497759,30.0,3706.0,3705.9,3.53163982]
[1753001498354,0.1344,3706.8,3705.9,0.83323998]
[1753001498512,3.64849875,3707.1,3706.3,2.69804858]
[1753001498717,30.0,3706.7,3706.5,0.1344]
[1753001499056,30.0,3707.0,3706.5,0.1344]
[1753001499261,30.0,3707.0,3703.2,0.001]
[1753001499262,1.62,3706.9,3703.2,0.001]
[1753001499574,0.55,3703.4,3701.4,0.14090282]
[1753001499769,0.55,3703.1,3701.0,0.7575]
[1753001499951,3.0,3702.3,3701.0,0.7575]
[1753001500135,5.7011696,3702.1,3701.9,0.001]
[1753001500457,35.7011696,3702.1,3701.9,0.001]
[1753001500822,36.1495696,3702.1,3701.9,0.001]
[1753001501139,6.5023402,3702.3,3701.9,0.001]
[1753001501348,30.0,3702.2,3701.9,0.001]
[1753001502114,3.1495696,3702.1,3701.9,0.001]
[1753001502366,38.0605696,3702.1,3701.9,0.001]
[1753001502529,37.6121696,3702.1,3701.9,0.001]
[1753001503122,38.0605696,3702.1,3701.9,0.001]
[1753001503522,30.0,3702.1,3701.9,0.001]
[1753001503724,3.0,3702.4,3701.9,0.001]
[1753001503933,3.0,3702.2,3701.9,0.001]
[1753001504138,32.7011696,3702.1,3701.9,0.001]
[1753001504368,33.1495696,3702.1,3701.9,0.001]
[1753001504554,33.14593555,3702.1,3701.9,0.001]
[1753001504882,30.0,3702.1,3701.9,0.001]
[1753001505168,3.0,3702.3,3701.9,0.001]
[1753001505376,30.0,3702.2,3701.9,0.001]
[1753001505522,2.7011696,3702.1,3701.9,0.001]
[1753001505725,32.7011696,3702.1,3701.9,0.001]
[1753001505947,30.0,3702.1,3701.9,0.001]
[1753001506162,2.7011696,3702.1,3701.9,0.001]
[1753001506373,33.1495696,3702.1,3701.9,0.001]
[1753001507073,34.894,3702.1,3701.9,0.001]
[1753001507284,34.893,3702.1,3701.9,0.001]
[1753001507562,30.0,3702.1,3701.9,0.001]
[1753001507760,8.0405696,3702.1,3701.9,0.001]
[1753001508261,11.0405696,3702.1,3701.9,0.001]
[1753001508463,41.0405696,3702.1,3701.9,0.001]
[1753001509469,41.8584696,3702.1,3701.9,0.001]
[1753001509762,3.45556491,3702.6,3701.9,0.001]
[1753001509763,0.75472988,3702.6,3702.0,0.43]
[1753001510064,0.75472988,3702.6,3702.3,2.70095337]
[1753001510365,0.75472988,3702.6,3702.3,0.1344]
[1753001510564,0.75472988,3702.6,3702.2,2.70108297]
[1753001510723,0.88912988,3702.6,3702.2,2.70108297]
[1753001510927,0.1344,3702.6,3702.2,2.70108297]
[1753001511563,3.0,3703.2,3702.3,0.429]
[1753001511726,0.1344,3703.0,3702.9,2.70058602]
[1753001512054,0.1344,3703.0,3702.8,2.70063669]
[1753001512277,4.92,3703.3,3702.7,0.1344]
[1753001512645,0.8179,3703.8,3702.7,0.429]
[1753001512841,0.1344,3703.6,3703.1,2.70040699]
[1753001513055,0.1344,3703.6,3703.0,0.1344]
[1753001513255,0.1344,3703.6,3703.4,2.70016355]
[1753001513457,2.69965365,3704.2,3703.4,2.70016355]
[1753001513654,2.70000198,3703.8,3703.0,2.70049693]
[1753001513883,30.1344,3703.7,3703.1,0.1344]
[1753001514067,30.0,3703.6,3703.1,0.1344]
[1753001514262,30.0,3703.6,3702.9,0.8094]
[1753001514263,32.70014458,3703.6,3702.9,0.8094]
[1753001514466,30.0,3703.5,3702.3,0.8094]
[1753001514686,2.70023929,3703.4,3702.6,2.70078868]
[1753001514867,30.0,3703.3,3702.3,0.8094]
[1753001515048,4.905,3703.6,3703.0,2.70050728]
[1753001515579,4.905,3703.6,3702.7,2.70073189]
[1753001515958,30.0,3703.5,3702.8,2.70065896]
[1753001516157,30.0,3703.5,3702.3,0.8094]
[1753001516362,0.4484,3703.4,3702.3,0.8094]
[1753001516564,0.4484,3703.4,3702.4,2.70095073]
[1753001516565,30.0,3703.3,3702.4,2.70095073]
[1753001516869,2.70044276,3703.1,3702.3,3.51040942]
[1753001517071,30.0,3703.0,3702.3,3.51040942]
[1753001517279,30.0,3703.0,3702.4,2.70094482]
[1753001517490,2.70051749,3703.0,3702.3,0.8094]
[1753001517685,2.70042528,3703.2,3702.3,0.8094]
[1753001517986,2.70030558,3703.3,3702.4,2.70095073]
[1753001517987,30.0,3703.1,3702.4,2.70095073]
[1753001518160,0.4484,3703.4,3702.4,2.70095073]
[1753001518376,2.70037311,3703.2,3702.4,2.70095073]
[1753001518676,30.0,3703.1,3702.5,2.70086286]
[1753001518986,30.0,3703.1,3702.6,2.70080459]
[1753001519194,0.4484,3703.4,3702.7,2.70072462]
[1753001519492,30.0,3703.3,3702.3,0.8094]
[1753001519691,32.70030599,3703.3,3702.3,3.51039702]
[1753001519856,34.878,3703.2,3702.6,2.70080012]
[1753001520057,2.70051309,3703.0,3702.3,3.51040578]
[1753001520252,2.70074668,3702.7,3702.0,0.001]
[1753001520452,4.878,3703.2,3702.1,2.70111308]
[1753001520453,0.4359,3703.1,3702.1,2.70111308]
[1753001520652,30.0,3703.0,3702.0,0.001]
[1753001520957,2.70094874,3702.5,3702.0,0.001]
[1753001521157,30.0,3702.4,3702.0,0.001]
[1753001521363,5.3059,3702.9,3702.0,0.001]
[1753001521689,2.7008081,3702.6,3702.0,0.001]
[1753001521990,30.24949788,3702.5,3702.0,0.001]
[1753001522194,2.7011696,3702.1,3702.0,0.001]
[1753001522491,2.69789533,3702.1,3702.0,0.001]
[1753001522787,3.1370696,3702.1,3702.0,0.001]
[1753001522990,38.24884264,3702.1,3702.0,0.001]
[1753001523180,5.11177304,3702.1,3702.0,0.001]
[1753001523994,7.81294264,3702.1,3702.0,0.001]
[1753001524157,8.38324264,3702.1,3702.0,0.001]
[1753001524686,41.38324264,3702.1,3702.0,0.001]
[1753001525100,40.94734264,3702.1,3702.0,0.001]
[1753001525306,0.38417304,3702.1,3702.0,0.001]
[1753001525625,0.24977304,3702.1,3702.0,0.001]
[1753001525972,0.24977304,3702.1,3702.0,3.29754257]
[1753001526203,0.24977304,3702.1,3702.0,0.1354]
[1753001526404,0.24977304,3702.1,3702.0,0.001]
[1753001526706,2.95094264,3702.1,3702.0,0.001]
[1753001526892,33.38684264,3702.1,3702.0,0.001]
[1753001527261,30.24977304,3702.1,3702.0,0.001]
[1753001527511,0.24977304,3702.1,3702.0,0.001]
[1753001528104,0.2510427,3702.1,3702.0,0.001]
[1753001528610,30.2510427,3702.1,3702.0,0.001]
[1753001528911,32.9522123,3702.1,3702.0,0.001]
[1753001529073,33.3881123,3702.1,3702.0,0.001]
[1753001529274,41.2301123,3702.1,3702.0,0.001]
[1753001530190,38.5289427,3702.1,3702.0,0.001]
[1753001530421,30.2510427,3702.1,3702.0,0.001]
[1753001530705,0.2510427,3702.1,3702.0,0.001]
[1753001531717,36.3881123,3702.1,3702.0,0.001]
[1753001531874,35.9522123,3702.1,3702.0,0.001]
[1753001532075,40.7832123,3702.1,3702.0,0.001]
[1753001532283,41.47109087,3702.1,3702.0,0.001]
[1753001532486,11.47109087,3702.1,3702.0,0.001]
[1753001533020,11.47109087,3702.1,3701.3,0.001]
[1753001533021,2.70141748,3701.8,3701.3,0.001]
[1753001533222,5.70168044,3701.4,3701.3,0.001]
[1753001533397,40.77772314,3701.4,3701.3,0.001]
[1753001533722,41.98312314,3701.4,3701.3,0.001]
[1753001534025,42.78508688,3701.4,3701.3,0.001]
[1753001535404,42.78508688,3701.4,3701.2,0.001]
[1753001535405,6.25175343,3701.3,3701.2,0.001]
[1753001535607,37.19065987,3701.3,3701.2,0.001]
[1753001535807,42.00765987,3701.3,3701.2,0.001]
[1753001536214,41.45765987,3701.3,3701.2,0.001]
[1753001536410,42.00765987,3701.3,3701.2,1e-08]
[1753001536922,42.76535987,3701.3,3701.2,1e-08]
[1753001537727,42.76535987,3701.3,3699.8,1e-08]
[1753001537728,2.70277575,3699.9,3699.8,1e-08]
[1753001538026,38.0600427,3699.9,3699.8,1e-08]
[1753001538190,41.19871845,3699.9,3699.8,1e-08]
[1753001539026,11.19871845,3699.9,3699.8,1e-08]
[1753001539236,41.74871845,3699.9,3699.8,1e-08]
[1753001539590,36.38971845,3699.9,3699.8,1e-08]
[1753001539788,41.20071845,3699.9,3699.8,1e-08]
[1753001539991,41.19777219,3699.9,3699.8,1e-08]
[1753001540429,30.24809644,3699.9,3699.8,1e-08]
[1753001540726,35.05809644,3699.9,3699.8,1e-08]
[1753001541096,35.05109644,3699.9,3699.8,1e-08]
[1753001541299,5.05109644,3699.9,3699.8,1e-08]
[1753001541500,0.24809644,3699.9,3699.8,1e-08]
[1753001541699,4.8,3699.9,3699.8,1e-08]
[1753001541928,2.70237359,3700.5,3699.8,1e-08]
[1753001542127,7.8,3700.4,3699.8,1e-08]
[1753001542325,3.0,3700.2,3699.8,1e-08]
[1753001542530,37.49962965,3700.1,3699.8,1e-08]
[1753001542731,32.70270828,3700.0,3699.8,1e-08]
[1753001542955,4.797,3699.9,3699.8,1e-08]
[1753001543108,7.49977575,3699.9,3699.8,1e-08]
[1753001543431,0.4359,3700.5,3699.8,1e-08]
[1753001543599,3.0,3700.3,3699.8,1e-08]
[1753001543804,3.0,3700.1,3699.8,1e-08]
[1753001544005,4.789,3700.0,3699.8,1e-08]
[1753001544611,7.49173392,3700.0,3699.8,1e-08]
[1753001544804,32.70277575,3699.9,3699.8,1e-08]
[1753001545011,33.13867575,3699.9,3699.8,1e-08]
[1753001545640,4.781,3699.9,3699.8,1e-08]
[1753001546002,4.781,3699.9,3699.8,0.46090001]
[1753001546332,4.78,3699.9,3699.8,1e-08]
[1753001546830,7.48277575,3699.9,3699.8,1e-08]
[1753001547135,37.91867575,3699.9,3699.8,1e-08]
[1753001547541,41.30127575,3699.9,3699.8,1e-08]
[1753001547711,46.87873722,3699.9,3699.8,1e-08]
[1753001548815,47.1297399,3699.9,3699.8,1e-08]
[1753001549025,47.12975353,3699.9,3699.8,1e-08]
[1753001549421,46.87873722,3699.9,3699.8,1e-08]
[1753001549817,47.08159111,3699.9,3699.8,1e-08]
[1753001550034,36.95717575,3699.9,3699.8,1e-08]
[1753001550327,42.4875727,3699.9,3699.8,1e-08]
[1753001550526,47.07913417,3699.9,3699.8,1e-08]
[1753001551045,41.73517575,3699.9,3699.8,1e-08]
[1753001551737,38.73517575,3699.9,3699.8,1e-08]
[1753001551943,42.28517575,3699.9,3699.8,1e-08]
[1753001552107,30.25094694,3699.9,3699.8,2.70284881]
[1753001552313,2.8416449,3703.0,3699.8,2.70284881]
[1753001552314,2.70256194,3700.2,3699.8,1.49158489]
[1753001552543,2.70277575,3699.9,3699.8,0.75130001]
[1753001552729,0.1344,3700.1,3699.8,1e-08]
[1753001553045,0.1344,3700.7,3699.9,0.7513]
[1753001553544,0.1344,3700.7,3700.3,2.70248358]
[1753001553740,0.1344,3700.7,3700.3,3.17248358]
[1753001553941,0.25095214,3701.2,3700.4,0.47]
[1753001554109,0.25095214,3701.4,3700.4,0.47]
[1753001554309,0.1344,3701.2,3700.7,0.1344]
[1753001554540,0.1344,3701.2,3700.8,3.17205829]
[1753001554541,0.38535214,3701.2,3700.8,3.17205829]
[1753001554717,30.0,3701.1,3700.8,0.47]
[1753001554930,0.25095214,3701.0,3700.9,0.47]
[1753001555246,0.1344,3701.1,3700.9,0.47]
[1753001556147,3.5020687,3701.8,3701.0,0.47]
[1753001556346,3.5020687,3701.8,3700.5,0.7513]
[1753001556347,0.1344,3701.4,3700.7,0.1344]
[1753001556548,2.70184824,3701.2,3700.3,2.70241181]
[1753001556742,0.1344,3700.9,3700.4,2.70239387]
[1753001556941,4.796,3701.5,3700.5,0.47]
[1753001556942,0.25095214,3701.0,3700.5,0.47]
[1753001557249,0.1344,3701.1,3700.7,2.70212734]
[1753001557455,0.1344,3701.1,3700.8,2.7021086]
[1753001557653,0.1344,3701.1,3700.9,3.17202332]
[1753001557955,0.1344,3701.4,3701.1,2.70184349]
[1753001558254,0.1344,3701.4,3701.2,0.47]
[1753001558425,5.9526141,3702.0,3701.3,0.47]
[1753001558625,0.1344,3701.6,3701.3,0.47]
[1753001558856,0.1344,3701.6,3701.3,3.17174502]
[1753001559045,0.1344,3701.6,3701.4,0.47]
[1753001559754,0.1344,3701.6,3700.0,2.70263188]
[1753001559755,30.0,3701.4,3700.7,2.70216074]
[1753001560068,0.1344,3701.3,3700.7,2.70216074]
[1753001560248,0.1344,3701.3,3701.0,2.70192513]
[1753001560745,0.002,3702.1,3701.4,3.0]
[1753001560926,0.002,3702.1,3702.0,2.70124257]
[1753001561122,0.002,3702.1,3702.0,3.50584257]
[1753001561322,0.002,3702.1,3702.0,3.97584257]
[1753001563878,0.002,3702.1,3701.8,0.47]
[1753001564062,0.01,3702.0,3701.7,5.5892]
[1753001564659,0.01,3702.0,3701.7,8.29064824]
[1753001564977,0.01,3702.0,3701.8,0.47]
[1753001565143,0.01,3702.0,3701.9,2.70131554]
[1753001565342,0.01,3702.0,3701.9,3.17131554]
[1753001566770,0.01,3702.0,3701.9,7.93231554]
[1753001566983,0.002,3702.1,3701.9,4.759]
[1753001567170,0.002,3702.1,3701.9,7.93029298]
[1753001567682,0.002,3702.1,3702.0,4.758]
[1753001567886,0.002,3702.1,3701.7,4.66182317]
[1753001568188,0.002,3702.1,3701.8,4.755]
[1753001568655,0.002,3702.1,3701.6,4.755]
[1753001568855,0.002,3702.1,3701.5,2.70160503]
[1753001568856,2.70131981,3701.9,3701.0,0.47]
[1753001569056,30.01,3702.0,3701.1,4.754]
[1753001569057,0.01,3702.0,3701.1,4.754]
[1753001569256,30.0,3701.9,3701.3,2.70168288]
[1753001569555,0.01,3702.0,3701.4,3.17162381]
[1753001569750,0.01,3702.0,3701.4,0.47]
[1753001569956,0.01,3702.0,3701.9,2.70131554]
[1753001570787,0.01,3702.0,3701.9,3.30571554]
[1753001570995,0.01,3702.0,3701.9,4.4614531]
[1753001571957,0.002,3702.1,3702.0,2.70124257]
[1753001572157,0.002,3702.1,3702.0,3.17124257]
[1753001573473,0.002,3702.1,3702.0,7.90524257]
[1753001575798,0.00161704,3702.7,3702.6,2.70080483]
[1753001575971,0.00161704,3702.7,3702.6,7.41180483]
[1753001576172,0.00161704,3702.7,3702.6,7.54620483]
[1753001576373,0.00161704,3702.7,3702.6,7.54320483]
[1753001577913,0.00161704,3702.7,3702.6,4.8524]
[1753001578219,0.00161704,3702.7,3702.6,4.8444]
[1753001578369,30.00161704,3702.7,3702.6,4.71]
[1753001578568,0.00161704,3702.7,3702.6,4.71]
[1753001578764,0.7511,3704.9,3702.9,0.7673]
[1753001579098,30.0,3704.8,3703.1,3.0]
[1753001579323,30.0,3704.8,3703.8,2.6998694]
[1753001579484,30.0,3704.8,3703.5,2.7001485]
[1753001579794,0.438,3704.7,3704.1,2.69965958]
[1753001579995,30.0,3704.6,3704.1,2.69965958]
[1753001580316,30.0,3704.6,3704.2,2.69957241]
[1753001580482,0.8061,3707.0,3705.5,0.8247]
[1753001580826,30.0,3706.9,3705.5,0.8247]
[1753001581149,0.8061,3707.0,3705.7,7.28116892]
[1753001581261,1.2441,3707.0,3705.6,0.4422]
[1753001581464,1.2441,3707.0,3706.2,2.69811815]
[1753001581660,32.69773199,3706.9,3705.5,0.8247]
[1753001581896,30.25010065,3706.8,3705.5,0.8247]
[1753001582075,4.799,3706.7,3705.6,3.1408183]
[1753001582273,4.796,3706.7,3706.1,2.69819301]
[1753001582864,4.796,3706.7,3705.5,1.20717]
[1753001582865,2.69799999,3706.5,3705.5,0.8247]
[1753001583112,30.0,3706.4,3705.5,0.8247]
[1753001583411,2.69810862,3706.3,3705.1,0.8247]
[1753001583570,0.438,3706.2,3704.9,3.0]
[1753001583764,0.438,3706.2,3704.7,0.8247]
[1753001583765,34.789,3706.1,3705.0,2.69904645]
[1753001583961,0.4561802,3707.5,3706.0,3.58312983]
[1753001584174,0.402,3708.4,3706.4,1.3747]
[1753001584395,0.402,3708.4,3707.1,2.69751687]
[1753001584603,0.402,3708.4,3707.2,2.69739571]
[1753001584921,0.402,3708.4,3706.8,0.02697744]
[1753001585066,0.402,3708.4,3706.7,3.0]
[1753001585067,4.8,3708.2,3707.9,2.69694436]
[1753001585403,4.8,3708.2,3707.6,2.69715687]
[1753001585578,4.8,3708.2,3707.8,2.69699242]
[1753001585779,4.8,3708.2,3707.5,2.69723533]
[1753001586189,4.8,3708.2,3706.9,3.4422]
[1753001586190,30.438,3707.9,3706.9,0.4422]
[1753001586374,30.0,3707.8,3706.5,4.799]
[1753001586573,30.0,3707.8,3706.3,0.4422]
[1753001586774,0.8152,3707.2,3705.8,0.7995]
[1753001586981,0.8152,3707.2,3706.2,2.69814505]
[1753001586982,37.49359022,3707.1,3706.2,2.69814505]
[1753001587174,37.49359022,3707.1,3705.8,0.7995]
[1753001587175,30.0,3707.0,3705.8,0.7995]
[1753001587467,30.0,3707.0,3706.1,2.69825069]
[1753001587468,4.795,3706.9,3706.1,2.69825069]
[1753001587698,30.0,3706.8,3706.0,2.69831445]
[1753001587894,30.0,3706.8,3705.8,0.7995]
[1753001588096,30.0,3706.8,3705.3,0.7995]
[1753001588296,30.0,3706.8,3705.6,2.69860829]
[1753001588297,2.69803908,3706.4,3705.6,2.69860829]
[1753001588503,2.69781746,3706.7,3705.4,2.69876022]
[1753001588711,0.1344,3706.2,3705.6,2.83294893]
[1753001588914,0.1344,3706.2,3705.6,0.1344]
[1753001589105,0.1344,3706.2,3705.6,2.83300793]
[1753001589417,0.1344,3706.2,3705.6,0.1344]
[1753001589614,0.1344,3706.2,3705.7,2.69854548]
[1753001590492,4.9134,3706.2,3705.7,2.69854548]
[1753001590815,4.9134,3706.2,3705.1,0.4422]
[1753001590816,2.69836129,3706.0,3705.2,2.69890207]
[1753001590981,0.1344,3705.8,3705.2,0.1344]
[1753001591312,4.773,3705.8,3705.4,2.69870503]
[1753001591513,4.773,3705.8,3705.4,3.27530503]
[1753001591818,4.773,3705.8,3705.4,3.27534635]
[1753001592396,4.773,3705.8,3705.4,0.1344]
[1753001592717,4.773,3705.8,3705.1,2.83332757]
[1753001592718,0.1344,3705.7,3705.1,2.83332757]
[1753001592915,0.1344,3705.7,3705.2,2.69890441]
[1753001593317,0.1344,3705.7,3705.3,2.69876829]
[1753001593519,4.76185888,3705.9,3705.4,2.6987323]
[1753001593680,0.7907,3706.3,3705.4,2.6987323]
[1753001593681,4.762,3705.8,3705.4,2.6987323]
[1753001593884,4.762,3705.8,3705.3,0.4422]
[1753001594103,2.69824848,3706.2,3705.3,0.4422]
[1753001594302,2.69842408,3705.9,3705.3,0.4422]
[1753001594521,2.69833151,3706.0,3705.0,2.69903272]
[1753001594703,2.69851508,3705.8,3705.0,2.69899145]
[1753001594884,4.759,3705.7,3705.1,2.6989706]
[1753001595089,4.759,3705.7,3705.2,2.69890741]
[1753001595326,2.69841886,3705.9,3705.2,2.69890741]
[1753001595641,7.45049107,3705.8,3704.8,3.91549353]
[1753001595843,7.45049107,3705.8,3705.1,2.69897164]
[1753001595844,4.752,3705.8,3705.1,2.69897164]
[1753001595986,4.752,3705.8,3704.8,1.2163]
[1753001596190,2.69856659,3705.7,3704.9,2.69911409]
[1753001596698,2.69867024,3705.6,3704.8,3.91547824]
[1753001596904,2.69869523,3705.5,3704.8,2.69917824]
[1753001597230,30.0,3705.4,3704.5,2.69936966]
[1753001597433,2.69888619,3705.3,3704.6,2.69933634]
[1753001597612,7.44192387,3705.2,3704.5,2.69940445]
[1753001597921,4.743,3705.2,3704.6,2.6993354]
[1753001598726,4.743,3705.2,3704.7,2.69927275]
[1753001598921,3.1366881,3705.6,3704.6,2.69933935]
[1753001599126,34.733,3705.5,3704.6,2.69933935]
[1753001599327,30.0,3705.4,3704.6,2.69933935]
[1753001599491,32.698822,3705.4,3704.6,2.69933935]
[1753001599803,34.732,3705.3,3703.5,0.8182]
[1753001599993,0.7845,3705.1,3703.8,2.69987871]
[1753001600323,0.7845,3705.1,3703.5,0.8182]
[1753001600324,34.732,3705.0,3704.1,2.69968407]
[1753001600502,2.69920737,3704.8,3704.0,2.69976732]
[1753001600913,2.69931212,3704.7,3703.9,3.14203956]
[1753001601092,2.69931212,3704.7,3703.9,0.4422]
[1753001601093,2.69929625,3704.7,3703.9,0.4422]
[1753001601298,2.69925155,3704.8,3703.9,3.14204529]
[1753001601542,30.438,3704.7,3703.5,0.8182]
[1753001601694,2.69955033,3704.4,3703.3,2.70029433]
[1753001601892,4.731,3704.3,3703.5,2.70010273]
[1753001602118,7.4305722,3704.3,3703.5,2.70010273]
[1753001602490,2.69990839,3703.9,3703.1,2.70043743]
[1753001602710,2.69980666,3704.0,3703.2,2.70034595]
[1753001603021,30.0,3703.9,3703.3,2.70023545]
[1753001603191,3.48415165,3704.2,3703.4,2.70021511]
[1753001603398,3.61855165,3704.2,3703.6,0.1344]
[1753001603813,0.9189,3704.2,3703.6,0.1344]
[1753001604403,3.61854714,3704.2,3703.6,0.1344]
[1753001605326,0.1344,3704.2,3703.6,0.1344]
[1753001605527,4.712,3704.3,3703.9,2.69979972]
[1753001605728,4.712,3704.3,3703.8,2.83431005]
[1753001606128,4.712,3704.3,3703.9,3.1420569]
[1753001606129,4.71,3704.3,3703.9,3.1420569]
[1753001606301,4.71,3704.3,3704.0,2.83415868]
[1753001606603,0.1344,3704.6,3704.0,2.83417154]
[1753001606801,4.706,3704.5,3704.0,0.1344]
[1753001607003,2.83375441,3704.6,3704.0,0.1344]
[1753001607217,2.6996291,3704.3,3704.0,0.1344]
[1753001607412,4.706,3704.4,3703.4,0.4422]
[1753001607616,2.69965073,3704.2,3703.5,2.70012766]
[1753001607925,2.83405296,3704.2,3703.6,0.1344]
[1753001608114,0.1344,3704.2,3703.8,2.69990932]
[1753001608315,0.7508,3705.0,3703.4,0.02700221]
[1753001608516,0.1344,3704.7,3704.3,0.7622]
[1753001608716,4.698,3705.2,3704.4,0.4533]
[1753001609029,4.8324,3705.2,3704.7,2.69926154]
[1753001609208,5.08398989,3705.2,3704.7,2.69926154]
[1753001609402,0.38598989,3705.2,3704.7,0.4533]
[1753001609617,0.1344,3705.2,3704.9,2.69907802]
[1753001609826,0.38598989,3705.2,3704.9,2.69907802]
[1753001610136,0.1344,3705.2,3704.8,3.15249745]
[1753001610324,0.25158989,3705.6,3705.1,2.69898248]
[1753001610634,0.25158989,3705.5,3705.0,2.83339739]
[1753001610932,4.94458989,3705.6,3705.0,3.28669739]
[1753001611144,4.69107486,3705.6,3705.0,0.5877]
[1753001611439,7.38969965,3705.6,3705.0,0.1344]
[1753001612028,4.69107486,3705.6,3705.0,2.83343145]
[1753001612350,4.69107486,3705.6,3705.0,0.1344]
[1753001612557,32.69875931,3705.5,3705.0,0.1344]
[1753001612720,2.69875931,3705.5,3705.0,0.1344]
[1753001613207,4.684,3705.4,3705.0,0.1344]
[1753001614712,4.683,3705.3,3705.0,0.1344]
[1753001615811,7.82938307,3705.3,3704.7,0.1344]
[1753001616013,0.4475,3705.2,3704.7,2.83366126]
[1753001616423,4.683,3705.3,3704.7,2.83366126]